bitfinex/quotes_ETHUSD_20241225
["timestamp","ask_amount","ask_price","bid_price","bid_amount"]
[1735109247764,0.766,3492.4,3491.6,2.7231322]
[1735109247960,0.766,3492.2,3491.5,1.19511844]
[1735109248257,2.86279,3493.1,3491.5,1.19511844]
[1735109248258,0.766,3492.0,3491.5,2.47611793]
[1735109249454,0.766,3492.0,3491.5,1.28099949]
[1735109250125,0.766,3492.0,3491.1,5.5865765]
[1735109250321,0.766,3492.0,3491.2,0.55865765]
[1735109251770,0.766,3492.0,3490.9,6.42783832]
[1735109251771,0.766,3491.9,3490.9,6.42783832]
[1735109252067,2.86388,3491.8,3490.8,1.19511844]
[1735109252270,0.766,3491.7,3490.7,2.86467]
[1735109252471,0.766,3491.7,3491.0,2.7221665]
[1735109256476,0.766,3491.6,3491.0,2.7221665]
[1735109260290,0.766,3491.5,3491.0,2.7221665]
[1735109260493,0.766,3491.5,3491.4,2.7221665]
[1735109260798,0.766,3491.8,3491.5,2.86408]
[1735109260971,0.7756,3492.5,3491.6,2.86399]
[1735109261165,0.7756,3492.5,3491.4,3.5000665]
[1735109261358,0.7756,3492.5,3491.8,2.7221665]
[1735109261554,0.7756,3492.5,3491.9,3.91387665]
[1735109263598,0.7756,3492.5,3492.0,2.86367]
[1735109263764,0.7756,3492.7,3492.1,2.7221665]
[1735109263962,0.7756,3492.7,3492.3,2.86343]
[1735109264165,0.7756,3492.7,3492.4,0.55855965]
[1735109266156,0.7756,3492.7,3492.1,2.7221665]
[1735109266361,0.7756,3492.7,3491.9,3.91387665]
[1735109267089,0.7756,3492.7,3492.0,2.86367]
[1735109268370,0.7756,3492.7,3492.1,2.8636]
[1735109275298,0.7756,3492.7,3492.1,2.75080017]
[1735109275491,0.7756,3492.7,3492.2,3.24360168]
[1735109277025,0.7756,3492.7,3492.3,2.86339]
[1735109278132,0.7756,3492.7,3492.2,0.38009168]
[1735109278133,0.7756,3492.7,3492.4,2.86333]
[1735109281364,0.7756,3492.7,3492.2,0.38009168]
[1735109281543,0.7756,3492.7,3491.9,0.27221665]
[1735109281838,0.7756,3492.7,3492.0,2.86362]
[1735109282426,0.7756,3492.7,3492.1,2.86357]
[1735109286138,0.7756,3492.7,3492.3,1.28042623]
[1735109286473,0.7756,3492.7,3492.3,4.14385623]
[1735109289963,0.7756,3492.7,3492.3,1.28042623]
[1735109290932,0.7756,3492.7,3492.3,4.14385623]
[1735109291141,0.7756,3492.7,3492.5,1.28042623]
[1735109292779,0.7756,3492.7,3492.5,4.14363623]
[1735109295275,0.7756,3492.7,3492.5,1.28042623]
[1735109300687,1.3127,3493.2,3492.5,1.28042623]
[1735109300887,0.7627,3493.1,3492.5,1.28042623]
[1735109301390,0.7627,3493.1,3492.3,4.14383623]
[1735109304985,0.94455872,3493.0,3492.3,4.14383623]
[1735109306403,0.94455872,3493.0,3492.4,0.99376838]
[1735109306892,0.94455872,3493.0,3492.4,3.85710838]
[1735109307400,0.94455872,3493.0,3492.5,1.28042623]
[1735109307810,2.36429499,3492.9,3492.5,3.76615616]
[1735109308310,2.77587024,3492.9,3492.5,2.48572993]
[1735109308509,1.3096,3492.6,3492.5,2.48572993]
[1735109308684,4.17279,3492.6,3492.5,2.48572993]
[1735109309204,8.45321623,3492.6,3492.5,2.48572993]
[1735109309599,8.45321623,3492.6,3492.4,1.49196155]
[1735109309772,8.37413986,3492.5,3492.4,1.49196155]
[1735109311017,9.05878966,3492.5,3491.3,2.48669245]
[1735109311217,0.7596,3491.8,3491.3,2.48669245]
[1735109312103,0.7596,3491.8,3491.3,3.76711868]
[1735109312680,0.7596,3491.8,3491.3,1.28042623]
[1735109315359,0.7596,3491.8,3491.5,1.28042623]
[1735109319252,0.7596,3491.8,3491.3,1.28042623]
[1735109322594,0.7596,3491.8,3491.5,1.28042623]
[1735109323893,1.20012285,3492.4,3491.1,2.89306125]
[1735109323894,0.7504,3492.3,3491.7,1.28042623]
[1735109324097,0.7504,3492.3,3492.0,1.28042623]
[1735109324297,0.7504,3492.3,3491.8,1.28042623]
[1735109325377,0.7504,3492.3,3491.3,3.65524]
[1735109325574,0.7504,3492.3,3491.7,1.28042623]
[1735109326265,0.7504,3492.3,3491.4,0.665524]
[1735109326999,0.55,3492.2,3491.3,0.791]
[1735109327219,3.0,3492.7,3491.1,3.91830721]
[1735109327220,3.4137,3492.0,3491.1,3.91830721]
[1735109327415,0.7504,3491.9,3491.1,3.91830721]
[1735109329100,0.7504,3491.9,3491.1,6.78271721]
[1735109329260,0.7504,3491.9,3491.1,5.58626767]
[1735109329458,0.7504,3491.9,3491.1,6.58052491]
[1735109330401,0.7504,3491.9,3491.1,3.71611491]
[1735109330704,0.7504,3491.9,3491.2,2.86433]
[1735109334403,0.55,3491.8,3491.1,3.71611491]
[1735109335822,0.55,3491.8,3491.1,2.72185767]
[1735109336029,0.7735,3491.7,3491.1,2.72185767]
[1735109337088,0.55,3491.6,3490.8,1.19644954]
[1735109337423,0.7735,3491.5,3490.8,1.19644954]
[1735109339127,0.55,3491.4,3490.8,1.19644954]
[1735109339583,0.55,3491.4,3490.7,2.72185767]
[1735109342295,0.7735,3491.3,3490.5,9.40132767]
[1735109343446,0.7735,3491.3,3490.6,0.99197429]
[1735109345215,0.7735,3491.1,3490.5,2.72185767]
[1735109345523,0.7735,3490.9,3490.5,2.72185767]
[1735109346345,0.7735,3490.9,3490.6,1.28166356]
[1735109346642,1.192284,3490.9,3490.6,1.28166356]
[1735109347204,0.7735,3490.9,3490.6,1.28166356]
[1735109358881,2.86468,3490.8,3490.2,1.28166356]
[1735109359030,0.8127,3490.7,3490.2,1.28166356]
[1735109362935,0.8127,3490.7,3490.4,1.28166356]
[1735109363234,0.8127,3490.7,3490.6,1.28166356]
[1735109363447,1.164036,3490.9,3490.6,1.28166356]
[1735109363955,1.164036,3490.9,3490.8,1.28166356]
[1735109364194,0.351336,3490.9,3490.8,1.28166356]
[1735109365500,0.351336,3490.9,3490.6,1.28166356]
[1735109367300,0.351336,3490.9,3490.3,0.7994]
[1735109367507,0.8039,3490.8,3490.5,1.28166356]
[1735109369801,1.2058676,3490.8,3490.3,1.28166356]
[1735109370009,1.2058676,3490.8,3490.1,1.28166356]
[1735109370878,4.0705876,3490.8,3490.1,1.28166356]
[1735109371077,3.66862,3490.8,3490.1,1.28166356]
[1735109372194,0.8039,3490.7,3490.1,1.28166356]
[1735109373611,0.8039,3490.7,3489.8,0.818]
[1735109373782,3.66866,3490.7,3490.0,1.28166356]
[1735109373983,0.4019996,3490.6,3490.0,1.28166356]
[1735109375427,0.8039,3490.5,3490.0,1.28166356]
[1735109379940,0.8039,3490.5,3490.2,1.28166356]
[1735109385708,0.8039,3490.5,3489.8,0.1]
[1735109386012,2.86524,3490.1,3489.8,0.1]
[1735109386240,0.7855,3489.9,3489.8,0.1]
[1735109389966,4.20091,3489.9,3489.8,0.1]
[1735109396122,3.41553,3489.8,3489.6,0.1]
[1735109396638,2.86557,3489.7,3489.6,0.1]
[1735109397378,4.20347,3489.7,3489.6,0.1]
[1735109397568,5.07502676,3489.7,3489.6,0.1]
[1735109398170,5.01685576,3489.7,3489.6,0.1]
[1735109400772,8.01685576,3489.7,3489.6,0.1]
[1735109402610,2.86582,3489.4,3488.1,1.20644954]
[1735109402763,1.42155676,3489.7,3488.1,1.20644954]
[1735109402764,2.86664,3488.4,3488.1,1.20644954]
[1735109402970,2.8668,3488.2,3488.1,1.20644954]
[1735109403278,3.4168,3488.2,3488.1,1.20644954]
[1735109403476,4.2047,3488.2,3488.1,1.20644954]
[1735109404001,4.2047,3488.2,3488.1,0.01]
[1735109404308,7.91183,3488.2,3488.1,0.01]
[1735109411927,7.91183,3488.2,3488.1,1e-05]
[1735109413428,8.16183,3488.2,3488.1,1e-05]
[1735109414610,7.91183,3488.2,3488.1,1e-05]
[1735109414907,8.48222155,3488.2,3488.1,1e-05]
[1735109421610,0.7785,3488.7,3488.1,1e-05]
[1735109421894,2.86647,3488.6,3488.1,1e-05]
[1735109422060,2.8668,3488.2,3488.1,1e-05]
[1735109422386,3.6453,3488.2,3488.1,1e-05]
[1735109423165,7.1953,3488.2,3488.1,1e-05]
[1735109423487,8.47415575,3488.2,3488.1,1e-05]
[1735109425192,8.72415575,3488.2,3488.1,1e-05]
[1735109426098,11.45078328,3488.2,3488.1,1e-05]
[1735109427793,3.7838,3488.1,3486.7,0.7677]
[1735109427963,2.86807,3486.7,3486.4,0.7558]
[1735109428500,2.86837,3486.3,3485.4,0.7714]
[1735109428849,2.86847,3486.2,3485.4,0.7714]
[1735109430088,0.55,3486.5,3485.4,0.7714]
[1735109430297,0.55,3486.3,3485.4,0.7714]
[1735109431068,3.41837,3486.3,3485.4,0.7714]
[1735109432970,0.717651,3486.4,3485.5,0.7714]
[1735109433171,5.8679,3486.9,3485.7,2.86885]
[1735109433404,2.86771,3487.1,3486.0,0.7714]
[1735109433695,2.86731,3487.6,3486.4,2.86828]
[1735109433905,2.86731,3487.6,3486.5,0.7714]
[1735109434075,6.52685971,3488.0,3486.5,0.7714]
[1735109434270,2.86739,3487.5,3486.5,0.7714]
[1735109434463,0.286739,3487.5,3486.5,0.7714]
[1735109434665,2.8677,3487.2,3486.5,0.7714]
[1735109436313,0.286739,3487.5,3486.5,0.7714]
[1735109436523,3.41747,3487.4,3486.5,0.7714]
[1735109436900,2.86747,3487.4,3486.5,0.7714]
[1735109437101,3.0,3487.6,3486.7,0.7714]
[1735109438023,2.86735,3487.6,3486.7,0.7714]
[1735109438316,2.86738,3487.5,3486.7,0.7714]
[1735109439606,2.86755,3487.3,3486.7,0.7714]
[1735109440517,2.86762,3487.3,3486.7,0.7714]
[1735109440722,1.355462,3487.3,3486.7,0.7714]
[1735109441019,2.86778,3487.1,3486.7,0.7714]
[1735109442005,3.586762,3487.3,3486.7,0.7714]
[1735109442295,2.86747,3487.4,3486.7,0.7714]
[1735109442497,3.0,3487.5,3486.7,0.7714]
[1735109443023,1.24164791,3488.0,3486.7,0.7714]
[1735109443222,2.86765,3487.2,3486.7,0.7714]
[1735109443382,2.86786,3487.0,3486.7,0.7714]
[1735109446528,2.86788,3486.9,3486.7,0.7714]
[1735109450554,3.55,3487.3,3486.7,0.7714]
[1735109450924,2.86783,3487.0,3486.7,0.7714]
[1735109451350,3.509613,3487.0,3486.7,0.7714]
[1735109451948,0.641783,3487.0,3486.7,0.7714]
[1735109454057,7.06765285,3487.4,3486.7,0.7714]
[1735109455018,3.0,3487.2,3486.7,0.7714]
[1735109455518,4.20012285,3487.4,3486.7,0.7714]
[1735109455761,2.86764,3487.2,3486.7,0.7714]
[1735109456461,2.86781,3487.0,3486.7,0.7714]
[1735109458868,2.86781,3487.0,3486.0,0.8131]
[1735109459038,2.86781,3487.0,3485.9,2.86866]
[1735109459039,2.86781,3487.0,3486.1,0.4906891]
[1735109459238,2.86781,3487.0,3486.2,0.8131]
[1735109460471,2.86763,3487.2,3486.2,0.8131]
[1735109460671,7.06759285,3487.4,3486.3,0.8131]
[1735109460887,4.20012285,3487.4,3486.5,0.8131]
[1735109461197,2.86772,3487.1,3486.5,0.8131]
[1735109461899,3.46758071,3487.3,3486.5,0.8131]
[1735109463085,2.86766,3487.2,3486.5,0.8131]
[1735109464197,1.20012285,3487.5,3486.6,0.8131]
[1735109464494,1.20012285,3487.4,3486.8,0.8131]
[1735109464696,1.20012285,3487.4,3487.0,0.8131]
[1735109466008,3.0,3487.6,3487.0,0.8131]
[1735109466499,1.20012285,3488.0,3487.2,2.86762]
[1735109466705,1.20012285,3488.0,3487.4,0.8131]
[1735109469303,2.86683,3488.2,3487.4,0.8131]
[1735109469809,3.57352529,3488.2,3487.4,0.8131]
[1735109470503,0.70669529,3488.2,3487.4,0.8131]
[1735109470707,2.86691,3488.1,3487.4,0.8131]
[1735109475828,0.70669529,3488.2,3487.4,0.8131]
[1735109476028,2.86673,3488.3,3487.4,0.8131]
[1735109476218,2.86685,3488.2,3487.4,0.8131]
[1735109477736,2.86689,3488.1,3487.4,0.8131]
[1735109479533,2.86689,3488.1,3486.9,0.7956]
[1735109479534,0.8193,3488.1,3486.9,0.7956]
[1735109479689,2.86746,3487.5,3486.9,0.7956]
[1735109480221,0.38193,3488.0,3486.9,0.7956]
[1735109480421,2.86713,3487.8,3486.9,0.7956]
[1735109480931,2.86699,3488.0,3487.0,0.7956]
[1735109481338,0.55,3488.3,3487.0,0.7956]
[1735109481627,2.86713,3487.9,3487.0,0.7956]
[1735109481790,2.8673,3487.6,3487.0,0.7956]
[1735109481994,0.8193,3487.8,3487.0,0.7956]
[1735109482430,2.86754,3487.4,3487.0,0.7956]
[1735109488250,2.86759,3487.3,3487.0,0.7956]
[1735109488412,3.154349,3487.3,3487.0,0.7956]
[1735109489350,2.86759,3487.3,3487.0,0.7956]
[1735109490544,2.8681,3486.7,3486.3,0.8068]
[1735109490951,2.86814,3486.6,3486.3,0.8068]
[1735109493555,5.01352285,3487.2,3486.3,0.8068]
[1735109493786,2.86798,3486.8,3486.3,0.8068]
[1735109493945,3.54915071,3487.1,3486.3,0.8068]
[1735109494251,3.54915071,3487.1,3485.7,2.72662753]
[1735109494252,1.20012285,3487.2,3486.4,0.8068]
[1735109494452,1.20012285,3487.2,3486.5,0.8068]
[1735109494656,1.20012285,3487.2,3486.6,2.8681]
[1735109494828,1.20012285,3487.3,3486.7,1.09361]
[1735109495031,1.20012285,3487.3,3486.6,0.8068]
[1735109496282,2.86724,3487.7,3486.8,0.8068]
[1735109499666,3.0,3487.8,3486.9,0.8068]
[1735109500175,2.86719,3487.8,3486.9,0.8068]
[1735109500379,2.86719,3487.8,3487.1,0.8068]
[1735109502191,2.86725,3487.7,3487.1,0.8068]
[1735109502678,2.86708,3487.9,3486.7,0.7821]
[1735109502882,2.86706,3487.9,3486.8,2.86795]
[1735109503180,3.0,3488.1,3487.0,0.7821]
[1735109503181,2.86722,3487.7,3487.0,0.7821]
[1735109503387,2.86739,3487.5,3487.0,0.7821]
[1735109508215,1.20012285,3487.9,3487.0,0.7821]
[1735109508216,2.86728,3487.7,3487.0,0.7821]
[1735109508516,2.86731,3487.6,3487.0,0.7821]
[1735109510718,0.351336,3487.5,3487.0,0.7821]
[1735109511046,0.351336,3487.5,3487.4,2.86746]
[1735109511201,0.351336,3487.5,3487.4,4.3311864]
[1735109512304,0.351336,3487.5,3487.4,6.81573118]
[1735109513602,0.351336,3487.5,3487.4,3.94827118]
[1735109514008,0.351336,3487.5,3487.4,3.30404478]
[1735109515350,0.351336,3487.5,3487.4,0.8195]
[1735109516433,0.351336,3487.5,3487.4,3.68696]
[1735109516741,0.351336,3487.5,3487.4,6.71563217]
[1735109516944,0.351336,3487.5,3487.4,7.23696]
[1735109517303,0.351336,3487.5,3487.4,6.68696]
[1735109518025,0.351336,3487.5,3487.4,7.23696]
[1735109518649,0.351336,3487.5,3487.4,11.70634524]
[1735109519945,0.351336,3487.5,3487.4,13.50695291]
[1735109520502,0.351336,3487.5,3487.4,22.32694291]
[1735109522808,0.351336,3487.5,3487.4,18.54007945]
[1735109524646,0.351336,3487.5,3487.4,17.99007945]
[1735109525249,0.351336,3487.5,3487.4,19.18910429]
[1735109526139,0.351336,3487.5,3487.4,19.73910429]
[1735109526568,0.351336,3487.5,3487.4,18.54007945]
[1735109527515,6e-06,3487.5,3487.4,18.54007945]
[1735109529235,6e-06,3487.5,3487.4,22.31979552]
[1735109530568,6e-06,3487.5,3487.4,19.73799251]
[1735109532078,6e-06,3487.5,3487.4,18.54007945]
[1735109533394,6e-06,3487.5,3487.4,19.73799251]
[1735109535817,0.7806,3489.8,3488.5,0.8157]
[1735109536019,0.7806,3489.8,3488.9,2.72662753]
[1735109536227,0.7806,3489.8,3489.1,2.86605]
[1735109536824,0.7806,3489.8,3489.2,2.86595]
[1735109537021,0.97867229,3489.8,3489.2,2.86595]
[1735109537200,0.97867229,3489.8,3489.0,3.68184]
[1735109537396,0.7806,3489.7,3488.9,2.72662753]
[1735109537709,0.7806,3489.7,3488.9,5.59281753]
[1735109538116,0.7806,3490.1,3489.0,0.8157]
[1735109538429,0.7806,3490.1,3489.3,2.72662753]
[1735109538588,0.7806,3490.1,3489.4,2.86578]
[1735109539929,0.7806,3490.1,3489.2,2.86596]
[1735109540116,0.7806,3489.9,3488.9,2.72662753]
[1735109540426,0.7806,3489.7,3488.9,2.72662753]
[1735109543608,0.7806,3489.7,3488.9,5.59282753]
[1735109545135,0.7806,3489.7,3488.9,2.72662753]
[1735109545306,0.7806,3489.7,3489.1,2.86598]
[1735109545692,0.7806,3489.7,3489.1,3.42524075]
[1735109545898,0.7806,3489.7,3489.2,2.86598]
[1735109546118,0.7806,3489.7,3489.2,3.64868]
[1735109547230,0.7806,3489.7,3489.2,0.7827]
[1735109547430,0.7806,3489.7,3489.1,2.86606]
[1735109547617,0.7806,3489.7,3489.1,0.63753875]
[1735109547818,0.8067,3490.0,3489.4,0.7827]
[1735109548017,0.8067,3490.8,3489.7,2.72662753]
[1735109548232,0.8067,3490.8,3489.9,3.6481]
[1735109548821,0.8067,3490.8,3489.9,0.7827]
[1735109549227,0.8067,3490.8,3489.9,4.28558775]
[1735109549957,0.8067,3490.8,3490.0,2.86532]
[1735109550338,0.8067,3490.8,3489.9,1.42018775]
[1735109550543,0.8067,3490.8,3490.1,2.86524]
[1735109552278,0.8067,3490.8,3490.2,2.86513]
[1735109552457,0.8067,3490.8,3490.3,0.286513]
[1735109555036,2.86409,3491.6,3490.3,0.286513]
[1735109555234,3.8067,3491.5,3490.5,2.86491]
[1735109555430,0.8067,3491.5,3490.6,0.02864632]
[1735109555631,0.8067,3491.5,3490.9,5.59120753]
[1735109555966,0.8067,3491.5,3490.9,3.14885708]
[1735109556188,0.8067,3491.5,3491.0,2.8645]
[1735109556585,0.8067,3492.1,3491.3,2.72662753]
[1735109557110,0.8067,3492.1,3490.9,6.79611708]
[1735109557111,0.8067,3492.0,3490.9,6.79611708]
[1735109557800,0.8067,3491.6,3490.9,3.14885708]
[1735109558012,0.76874978,3491.6,3491.0,0.31488571]
[1735109558359,0.76874978,3491.6,3490.7,2.86474]
[1735109558595,0.76874978,3491.6,3490.8,2.86466]
[1735109558801,0.76874978,3491.6,3490.6,2.8648]
[1735109559004,0.76874978,3491.6,3490.7,2.72662753]
[1735109559475,0.76874978,3491.6,3490.7,5.59137753]
[1735109559680,0.76874978,3491.6,3490.8,0.6173011]
[1735109560166,0.76874978,3491.6,3490.8,1.4000011]
[1735109560368,0.76874978,3491.6,3491.2,2.86433]
[1735109560782,0.76874978,3491.6,3491.1,2.72662753]
[1735109560990,0.8071,3492.4,3491.1,2.72662753]
[1735109561202,0.8071,3492.1,3491.2,0.27266275]
[1735109561700,0.8071,3492.1,3491.2,3.13700275]
[1735109562804,0.8071,3492.1,3491.3,2.86424]
[1735109564302,0.8071,3492.1,3491.2,0.27266275]
[1735109564800,0.8071,3491.9,3491.2,0.27266275]
[1735109565323,0.8071,3491.9,3491.1,2.72662753]
[1735109565498,3.67091,3491.9,3491.1,2.72662753]
[1735109565706,0.8071,3491.8,3490.8,0.6173011]
[1735109566234,0.8071,3491.8,3490.8,3.4819611]
[1735109566728,0.8071,3491.8,3490.9,2.86455]
[1735109566926,0.8071,3491.8,3491.0,3.48534786]
[1735109567401,0.8071,3491.8,3491.1,2.72662753]
[1735109567802,0.8071,3491.8,3491.1,3.49042753]
[1735109568413,0.8071,3492.1,3491.5,5.59071753]
[1735109568913,0.8071,3492.1,3491.6,2.86394]
[1735109569114,0.8071,3492.1,3491.7,0.45910709]
[1735109569418,0.8071,3492.1,3491.5,2.72662753]
[1735109571703,0.8071,3492.1,3491.6,2.86398]
[1735109572041,0.8071,3492.1,3491.5,2.72662753]
[1735109572207,0.8071,3492.1,3491.7,2.86385]
[1735109573313,0.8071,3492.7,3491.7,2.86385]
[1735109573613,0.8071,3492.7,3491.8,0.63542775]
[1735109574207,0.8071,3492.7,3491.9,2.75526291]
[1735109574437,0.8071,3492.7,3492.2,2.8635]
[1735109575227,0.8071,3492.7,3492.3,5.58999753]
[1735109575711,0.8071,3493.3,3492.5,2.86325]
[1735109575916,0.8071,3493.3,3492.5,3.42223775]
[1735109576604,0.8071,3493.3,3492.5,0.55898775]
[1735109576804,0.8071,3493.3,3492.3,5.59004753]
[1735109577612,0.7851,3493.2,3492.3,5.59004753]
[1735109577815,2.86278,3493.1,3492.3,2.72662753]
[1735109578014,0.7851,3493.0,3492.3,2.72662753]
[1735109579705,0.7851,3493.0,3492.1,3.43481375]
[1735109579927,0.7851,3493.0,3492.2,0.61614413]
[1735109580544,0.7851,3493.0,3492.2,3.47963413]
[1735109581169,0.7851,3493.0,3492.4,2.86334]
[1735109581711,0.7851,3493.0,3492.5,0.02862926]
[1735109582141,0.7851,3493.0,3492.6,2.86319]
[1735109582339,0.7851,3493.0,3492.7,0.28918193]
[1735109586354,0.7851,3493.6,3492.7,5.58973753]
[1735109588310,0.7851,3493.6,3492.7,2.72662753]
[1735109588855,2.86238,3493.6,3492.7,2.72662753]
[1735109589055,0.7851,3493.5,3492.7,2.72662753]
[1735109592546,0.7851,3493.5,3492.7,5.58972753]
[1735109592744,0.7851,3493.5,3492.8,0.55897275]
[1735109594065,0.7851,3493.5,3492.8,3.42192275]
[1735109594733,0.7851,3493.5,3492.8,0.55897275]
[1735109595152,0.7903,3493.4,3492.3,2.72662753]
[1735109595316,0.7903,3493.0,3492.2,0.61614413]
[1735109595517,0.7903,3493.0,3491.9,5.59036753]
[1735109595757,0.7903,3493.0,3492.0,0.8208]
[1735109595959,0.7903,3493.0,3492.2,2.8635]
[1735109596276,0.7903,3493.0,3492.3,2.72662753]
[1735109596557,0.7903,3493.0,3492.4,0.55901275]
[1735109596760,0.7903,3493.0,3492.3,5.59004753]
[1735109597318,0.7903,3493.0,3492.4,2.86333]
[1735109597567,0.7903,3493.0,3492.4,2.89196002]
[1735109598344,0.7903,3493.0,3492.3,2.72662753]
[1735109598556,0.7903,3493.0,3492.7,2.72662753]
[1735109598765,0.7903,3493.0,3492.8,0.27266275]
[1735109599128,0.7903,3493.0,3492.3,2.72662753]
[1735109599680,0.7903,3493.0,3492.3,5.59005753]
[1735109600976,0.7903,3493.0,3492.4,2.86334]
[1735109603232,0.7903,3493.0,3492.3,2.72662753]
[1735109603462,0.7903,3493.0,3492.7,2.72662753]
[1735109603622,0.7903,3493.3,3493.0,2.86284]
[1735109604022,0.7903,3493.3,3492.8,3.13567275]
[1735109605367,0.7903,3493.3,3492.8,0.27266275]
[1735109605668,0.7903,3493.3,3492.9,2.86294]
[1735109607250,0.7903,3493.3,3492.8,0.27266275]
[1735109607650,0.7786,3493.2,3492.3,3.92454059]
[1735109608051,0.7786,3493.1,3492.3,3.92454059]
[1735109608255,0.7786,3493.1,3492.3,2.72662753]
[1735109608472,0.79,3493.0,3492.2,1.19791306]
[1735109609967,0.79,3493.0,3492.1,2.86358]
[1735109610127,0.79,3493.0,3492.2,1.49898454]
[1735109610842,0.79,3493.0,3492.1,2.86358]
[1735109611765,0.79,3492.9,3492.0,2.72662753]
[1735109614143,0.79,3492.9,3492.1,2.48057882]
[1735109615575,0.79,3492.8,3492.1,2.48057882]
[1735109617172,0.79,3492.8,3492.0,2.72662753]
[1735109617342,0.79,3492.8,3492.0,3.58526316]
[1735109618158,0.79,3492.4,3491.8,1.19791306]
[1735109618669,0.79,3492.4,3491.9,1.19791306]
[1735109619926,0.79,3492.4,3491.7,0.99333418]
[1735109620173,0.79,3492.4,3491.7,1.80553418]
[1735109620730,0.79,3492.4,3491.7,0.99333418]
[1735109621370,0.79,3492.4,3491.8,3.26138897]
[1735109622679,0.79,3492.4,3491.8,2.48320249]
[1735109622973,0.79,3492.4,3491.6,6.78853059]
[1735109623940,0.79,3492.4,3491.7,2.48258688]
[1735109625274,0.812,3492.7,3492.0,2.72662753]
[1735109625463,0.812,3492.7,3492.1,2.8636]
[1735109625658,0.812,3492.7,3492.2,0.84538975]
[1735109625835,0.812,3492.7,3492.3,2.86341]
[1735109626899,0.812,3492.7,3492.3,3.85644475]
[1735109628157,0.812,3492.7,3492.3,2.86341]
[1735109629546,0.812,3492.7,3492.2,0.84538975]
[1735109629748,0.812,3492.7,3492.3,0.82197568]
[1735109630283,0.812,3492.7,3492.0,3.92454059]
[1735109630466,0.812,3492.7,3492.0,1.19791306]
[1735109630659,0.8024,3492.4,3492.0,1.19791306]
[1735109631243,2.86352,3492.2,3492.0,1.19791306]
[1735109631457,3.666,3492.1,3492.0,1.19791306]
[1735109631658,0.8024,3492.1,3492.0,1.19791306]
[1735109632371,0.8024,3492.1,3491.4,2.86415]
[1735109632573,0.8024,3492.1,3491.5,0.92709845]
[1735109633586,0.8024,3492.1,3491.5,3.79110845]
[1735109633799,0.8024,3492.1,3491.6,0.99291758]
[1735109633996,0.8024,3492.1,3491.6,3.85686758]
[1735109634173,0.8024,3492.1,3491.6,6.58349511]
[1735109634373,0.8024,3492.1,3491.7,0.87085066]
[1735109634599,0.8024,3492.7,3492.0,2.72662753]
[1735109635398,0.8024,3492.7,3492.1,2.86358]
[1735109640383,0.8024,3492.7,3491.8,1.19791306]
[1735109641281,0.7584,3492.6,3491.8,1.19791306]
[1735109641476,0.7584,3492.2,3491.8,1.19791306]
[1735109641680,0.7584,3492.7,3491.8,1.19791306]
[1735109641982,0.7584,3492.1,3491.8,1.19791306]
[1735109642712,0.7584,3492.0,3491.8,1.19791306]
[1735109643173,0.7584,3491.8,3491.0,1.19791306]
[1735109643507,0.7584,3491.7,3491.1,0.57226663]
[1735109643869,1.20012285,3492.3,3491.0,1.19791306]
[1735109643870,0.7584,3491.6,3491.0,1.19791306]
[1735109644108,0.7584,3492.0,3491.0,1.19791306]
[1735109644280,3.62282,3491.1,3491.0,1.19791306]
[1735109644871,2.86467,3490.8,3490.7,1.19791306]
[1735109645067,3.62307,3490.8,3490.7,1.19791306]
[1735109646482,3.62307,3490.8,3489.8,3.0]
[1735109646691,3.62307,3490.8,3489.8,4.00531334]
[1735109647214,0.7584,3490.8,3489.8,4.00531334]
[1735109647384,0.7584,3491.3,3490.5,5.59151753]
[1735109648485,0.7584,3491.3,3490.5,2.72662753]
[1735109648817,0.7584,3491.3,3490.6,0.27266275]
[1735109661102,0.7584,3491.3,3490.8,2.86466]
[1735109661420,0.7584,3491.3,3490.9,2.72662753]
[1735109661627,0.7584,3491.3,3490.8,2.86466]
[1735109661825,0.7584,3491.3,3490.8,5.59128753]
[1735109662031,0.7584,3491.3,3490.9,0.58639503]
[1735109669313,0.7565,3491.9,3491.0,2.86446]
[1735109673168,0.7565,3491.9,3491.2,3.55802753]
[1735109673369,0.7565,3491.9,3491.2,6.42229753]
[1735109674216,0.7565,3491.9,3491.2,3.55802753]
[1735109674579,0.7565,3491.9,3491.3,3.22005275]
[1735109675357,0.7565,3491.9,3491.3,0.35580275]
[1735109675558,0.7565,3491.9,3491.2,2.72662753]
[1735109685757,0.7565,3491.9,3491.1,0.57508481]
[1735109686505,0.8141,3491.8,3490.9,1.19791306]
[1735109686715,2.86392,3491.8,3490.9,1.19791306]
[1735109686900,0.8141,3491.7,3490.9,1.19791306]
[1735109687420,0.8141,3491.4,3490.9,1.19791306]
[1735109687805,0.8141,3491.4,3490.8,2.72662753]
[1735109688008,0.8141,3491.4,3490.8,5.59129753]
[1735109688704,0.8141,3491.4,3490.8,2.72662753]
[1735109688906,0.8141,3491.4,3490.9,2.86452]
[1735109689070,0.8141,3491.4,3491.0,0.55911475]
[1735109690423,0.8141,3491.9,3491.2,5.59088753]
[1735109690623,0.8141,3491.9,3491.2,3.55842753]
[1735109691767,0.8141,3491.9,3491.3,2.86421]
[1735109692006,0.8141,3491.9,3491.3,5.34724905]
[1735109692219,0.8141,3491.9,3491.4,1.01035896]
[1735109693718,0.8141,3491.9,3491.2,1.19791306]
[1735109694834,2.3553159,3491.8,3490.9,2.48459768]
[1735109695108,0.8141,3491.7,3490.9,5.34916768]
[1735109696308,0.8141,3491.7,3491.0,0.99383907]
[1735109698737,0.8141,3491.7,3491.0,2.48485567]
[1735109698872,0.8141,3491.7,3491.0,3.4122523]
[1735109699933,0.8141,3491.7,3491.1,0.99383907]
[1735109701448,0.8141,3491.7,3491.0,0.99383907]
[1735109701920,0.8141,3491.6,3491.0,0.99383907]
[1735109702727,2.86405,3491.6,3491.0,0.99383907]
[1735109703037,0.8141,3491.4,3490.6,4.06270306]